fUSD/lending_fUSD_20250107
["ID","MTS","AMOUNT","RATE_DAILY","PERIOD"]
[348011335,1736266264275,-430.44295461,0.00010408,2]
[348011336,1736266264285,-186.38332708,0.00010409,2]
[348011337,1736266264297,-391.688,0.00010409,2]
[348011338,1736266264352,-40.08867292,0.00010409,2]
[348011339,1736266264362,-213.95022708,0.00010409,2]
[348011340,1736266264448,-286.04977292,0.00010409,2]
[348011341,1736266264458,-500.0,0.00010409,2]
[348011342,1736266264467,-151.80538157,0.0001051,2]
[348011343,1736266264477,-859.88652268,0.00010511,2]
[348011344,1736266264487,-1620.61,0.00010511,2]
[348011345,1736266264497,-2113.72,0.00010511,2]
[348011346,1736266264506,-1911.37,0.00010511,2]
[348011347,1736266264514,-4132.18,0.00010511,2]
[348011348,1736266264525,-500.0,0.00010511,2]
[348011349,1736266264535,-1891.87,0.00010512,2]
[348011350,1736266264545,-2119.86,0.00010512,2]
[348011351,1736266264555,-500.0,0.00010512,2]
[348011352,1736266264565,-745.93,0.00010512,2]
[348011353,1736266264575,-2432.98120442,0.00010512,2]
[348011354,1736266264588,-1308.43879558,0.00010512,2]
[348011355,1736266264597,-1151.36,0.00010512,2]
[348011356,1736266264607,-1540.2,0.00010512,2]
[348011357,1736266264617,-1315.58,0.00010512,2]
[348011358,1736266264626,-693.27,0.00010512,2]
[348011359,1736266264635,-1523.81,0.00010512,2]
[348011360,1736266264644,-1236.83,0.00010512,2]
[348011361,1736266264654,-1760.38,0.00010512,2]
[348011362,1736266264664,-1430.9,0.00010512,2]
[348011363,1736266264673,-2107.96,0.00010512,2]
[348011364,1736266264683,-3383.51390752,0.00010512,2]
[348011365,1736266264702,-145.65609248,0.00010512,2]
[348011366,1736266264711,-8104.97,0.00010512,2]
[348011367,1736266264721,-2158.68,0.00010512,2]
[348011368,1736266264731,-1155.8,0.00010512,2]
[348011369,1736266264740,-1224.84,0.00010512,2]
[348011370,1736266264751,-2955.27,0.00010512,2]
[348011371,1736266264760,-500.0,0.00010512,2]
[348011372,1736266264771,-1281.69,0.00010512,2]
[348011373,1736266264781,-1543.05,0.00010512,2]
[348011374,1736266264792,-561.17,0.00010512,2]
[348011375,1736266264803,-2101.04,0.00010512,2]
[348011376,1736266264814,-833.29,0.00010512,2]
[348011377,1736266264824,-1203.13,0.00010512,2]
[348011378,1736266264835,-3182.49,0.00010512,2]
[348011379,1736266264845,-1338.36,0.00010512,2]
[348011380,1736266264855,-2497.96,0.00010512,2]
[348011381,1736266264865,-1575.0,0.00010521,2]
[348011382,1736266264875,-150.0,0.00010533,2]
[348011383,1736266264885,-500.0,0.00010534,2]
[348011384,1736266264896,-325.25883184,0.00010534,2]
[348011385,1736266264906,-159.79300498,0.00010534,2]
[348011386,1736266264916,-500.0,0.00010534,2]
[348011387,1736266264926,-500.0,0.00010535,2]
[348011388,1736266264937,-150.81028734,0.00010535,2]
[348011389,1736266264947,-150.0,0.00010536,2]
[348011390,1736266264958,-1216.88,0.00010547,2]
[348011391,1736266264967,-3381.56,0.00010547,2]
[348011392,1736266264977,-2116.71,0.00010547,2]
[348011393,1736266264987,-3472.35,0.00010547,2]
[348011394,1736266264997,-8671.73,0.00010547,2]
[348011395,1736266265008,-276.09,0.00010547,2]
[348011396,1736266265017,-604.57,0.00010547,2]
[348011397,1736266265027,-1622.02,0.00010547,2]
[348011398,1736266265037,-1080.8,0.00010547,2]
[348011399,1736266265047,-2624.65,0.00010547,2]
[348011400,1736266265057,-677.36,0.00010547,2]
[348011401,1736266265067,-5660.46,0.00010547,2]
[348011402,1736266265077,-2201.76,0.00010547,2]
[348011403,1736266265086,-1699.89,0.00010547,2]
[348011404,1736266265096,-150.0,0.00010595,2]
[348011405,1736266265106,-27709.41854246,0.000106,2]
[348011406,1736266265119,-13394.36500244,0.000106,2]
[348011407,1736266265147,-500.0,0.00010134,2]
[348011408,1736266265156,-138894.88241787,0.000106,2]
[348011554,1736266442515,-1000.0,0.00013698,30]
[348011555,1736266448451,-500.0,0.00013698,30]
[348011556,1736266453238,-500.0,0.00013698,30]
[348011557,1736266453266,-91.0,0.00013698,30]
[348011558,1736266453313,-165.96,9.437e-05,2]
[348011559,1736266453335,-152.472141,9.719e-05,2]
[348011560,1736266453356,-150.0,9.76e-05,2]
[348011561,1736266453378,-1130.8927828,9.761e-05,2]
[348011562,1736266453400,-150318.2037,9.761e-05,2]
[348011563,1736266453423,-311.4713,9.761e-05,2]
[348011564,1736266453444,-1000.0,9.761e-05,2]
[348011565,1736266453465,-3338.7734,9.761e-05,2]
[348011566,1736266453486,-640.215,9.761e-05,2]
[348011567,1736266453507,-725.6262,9.761e-05,2]
[348011568,1736266453527,-5000.0,9.761e-05,2]
[348011569,1736266453548,-3539.3723769,9.761e-05,2]
[348011570,1736266453570,-500.0,9.86e-05,2]
[348011571,1736266453591,-500.0,9.86e-05,2]
[348011572,1736266453612,-500.0,9.86e-05,2]
[348011573,1736266453633,-500.0,9.86e-05,2]
[348011574,1736266453665,-292.0130993,9.86e-05,2]
[348011576,1736266487386,-909.0,0.00013698,30]
[348011577,1736266487413,-91.0,0.00013698,30]
[348011578,1736266529902,-909.0,0.00013698,30]
[348011579,1736266529933,-91.0,0.00013698,30]
[348011580,1736266531549,-1000.0,0.00013698,30]
[348011581,1736266538974,-1.31256703,0.00013698,30]
[348011582,1736266573096,-177.87,7.588e-05,2]
[348011583,1736266573119,-373.7555,9.337e-05,2]
[348011584,1736266573141,-3862.3307,9.661e-05,2]
[348011585,1736266573163,-150.0,9.859e-05,2]
[348011586,1736266573184,-207.9869007,9.86e-05,2]
[348011587,1736266573206,-500.0,9.86e-05,2]
[348011588,1736266573226,-500.0,9.86e-05,2]
[348011589,1736266573250,-500.0,9.86e-05,2]
[348011590,1736266573271,-500.0,9.86e-05,2]
[348011591,1736266573295,-500.0,9.86e-05,2]
[348011592,1736266573316,-635.76,9.86e-05,2]
[348011593,1736266573337,-500.0,9.86e-05,2]
[348011594,1736266573359,-622.12,9.86e-05,2]
[348011595,1736266573380,-500.0,9.86e-05,2]
[348011596,1736266573401,-500.0,9.86e-05,2]
[348011597,1736266573422,-623.84,9.86e-05,2]
[348011598,1736266573444,-500.0,9.86e-05,2]
[348011599,1736266573464,-500.0,9.86e-05,2]
[348011600,1736266573484,-500.0,9.86e-05,2]
[348011601,1736266573505,-711.3,9.86e-05,2]
[348011602,1736266573526,-500.0,9.86e-05,2]
[348011603,1736266573549,-500.0,9.86e-05,2]
[348011604,1736266573570,-500.0,9.86e-05,2]
[348011605,1736266573592,-500.0,9.86e-05,2]
[348011606,1736266573615,-500.0,9.86e-05,2]
[348011607,1736266573635,-500.0,9.86e-05,2]
[348011608,1736266573656,-500.0,9.86e-05,2]
[348011609,1736266573678,-500.0,9.86e-05,2]
[348011610,1736266573702,-1008.39,9.86e-05,2]
[348011611,1736266573722,-500.0,9.86e-05,2]
[348011612,1736266573744,-551.72,9.86e-05,2]
[348011613,1736266573766,-992.33,9.86e-05,2]
[348011614,1736266573792,-1681.38,9.86e-05,2]
[348011615,1736266573813,-500.0,9.86e-05,2]
[348011616,1736266573835,-500.0,9.86e-05,2]
[348011617,1736266573858,-634.74,9.86e-05,2]
[348011619,1736266573881,-710.4,9.86e-05,2]
[348011620,1736266573903,-4544.72,9.86e-05,2]
[348011621,1736266573924,-500.0,9.86e-05,2]
[348011622,1736266573949,-500.0,9.86e-05,2]
[348011623,1736266573973,-2226.65,9.86e-05,2]
[348011624,1736266573994,-500.0,9.86e-05,2]
[348011625,1736266574016,-500.0,9.86e-05,2]
[348011626,1736266574039,-500.0,9.86e-05,2]
[348011627,1736266574060,-500.0,9.86e-05,2]
[348011628,1736266574083,-524.68,9.86e-05,2]
[348011629,1736266574106,-707.4,9.86e-05,2]
[348011630,1736266574128,-1452.51,9.86e-05,2]
[348011631,1736266574150,-523.25,9.86e-05,2]
[348011632,1736266574172,-1141.91,9.86e-05,2]
[348011633,1736266574196,-3517.64,9.86e-05,2]
[348011634,1736266574219,-500.0,9.86e-05,2]
[348011635,1736266574240,-1448.07,9.86e-05,2]
[348011636,1736266574261,-500.0,9.86e-05,2]
[348011637,1736266574283,-500.0,9.86e-05,2]
[348011638,1736266574316,-792.86,9.86e-05,2]
[348011639,1736266574349,-566.23,9.86e-05,2]
[348011640,1736266574372,-500.0,9.86e-05,2]
[348011641,1736266574394,-1024.0,9.86e-05,2]
[348011642,1736266574417,-1264.08,9.86e-05,2]
[348011643,1736266574439,-500.0,9.86e-05,2]
[348011644,1736266574463,-500.0,9.86e-05,2]
[348011645,1736266574486,-498.0768993,9.86e-05,2]
[348011646,1736266577843,-1.9231007,9.86e-05,2]
[348011647,1736266577866,-641.34,9.86e-05,2]
[348011648,1736266577890,-554.13,9.86e-05,2]
[348011649,1736266577912,-1654.87,9.86e-05,2]
[348011650,1736266577935,-1644.44,9.86e-05,2]
[348011651,1736266577959,-626.4,9.86e-05,2]
[348011652,1736266577986,-668.48,9.86e-05,2]
[348011653,1736266578011,-500.0,9.86e-05,2]
[348011654,1736266578034,-1419.04,9.86e-05,2]
[348011655,1736266578063,-917.91,9.86e-05,2]
[348011656,1736266578087,-988.9,9.86e-05,2]
[348011657,1736266578110,-1267.46,9.86e-05,2]
[348011658,1736266578134,-2709.76,9.86e-05,2]
[348011659,1736266578156,-500.0,9.86e-05,2]
[348011660,1736266578180,-504.87,9.86e-05,2]
[348011661,1736266578203,-613.17,9.86e-05,2]
[348011662,1736266578225,-1064.77,9.86e-05,2]
[348011663,1736266578247,-1856.64,9.86e-05,2]
[348011664,1736266578268,-1271.96,9.86e-05,2]
[348011665,1736266578294,-1115.48,9.86e-05,2]
[348011666,1736266578317,-3511.57,9.86e-05,2]
[348011667,1736266578339,-771.86,9.86e-05,2]
[348011668,1736266578361,-500.0,9.86e-05,2]
[348011669,1736266578385,-710.79,9.86e-05,2]
[348011670,1736266578408,-3676.57,9.86e-05,2]
[348011671,1736266578433,-2319.39,9.86e-05,2]
[348011672,1736266578459,-1940.32,9.86e-05,2]
[348011673,1736266578482,-8179.01432831,9.86e-05,2]
[348011674,1736266578505,-500.0,9.86e-05,2]
[348011675,1736266578527,-500.0,9.86e-05,2]
[348011676,1736266578555,-3182.99,9.86e-05,2]
[348011677,1736266578578,-500.0,9.86e-05,2]
[348011678,1736266578604,-567.4,9.86e-05,2]
[348011679,1736266578628,-500.0,9.86e-05,2]
[348011680,1736266578654,-2118.55257099,9.86e-05,2]
[348011688,1736266782595,-1085.86,8.219e-05,2]
[348011689,1736266782618,-679.9,9.296e-05,2]
[348011690,1736266782640,-200.0,9.349e-05,2]
[348011691,1736266782663,-168.98,9.547e-05,2]
[348011692,1736266782687,-379.6317,9.761e-05,2]
[348011693,1736266782709,-150.0,9.859e-05,2]
[348011694,1736266782732,-300.0,9.859e-05,2]
[348011695,1736266782755,-5895.08742901,9.86e-05,2]
[348011696,1736266782776,-500.0,9.86e-05,2]
[348011697,1736266782798,-753.13,9.86e-05,2]
[348011698,1736266782820,-1202.24,9.86e-05,2]
[348011699,1736266782846,-1065.76,9.86e-05,2]
[348011700,1736266782870,-1575.92,9.86e-05,2]
[348011701,1736266782893,-500.0,9.86e-05,2]
[348011702,1736266782915,-632.67,9.86e-05,2]
[348011703,1736266782937,-594.95,9.86e-05,2]
[348011704,1736266782960,-865.55,9.86e-05,2]
[348011705,1736266782985,-1507.69,9.86e-05,2]
[348011706,1736266783013,-528.73,9.86e-05,2]
[348011707,1736266783043,-1011.57,9.86e-05,2]
[348011708,1736266783069,-1020.41,9.86e-05,2]
[348011709,1736266783385,-2775.36,9.86e-05,2]
[348011710,1736266783410,-1206.2,9.86e-05,2]
[348011711,1736266783433,-2432.78,9.86e-05,2]
[348011712,1736266783456,-500.0,9.86e-05,2]
[348011713,1736266783478,-1018.36,9.86e-05,2]
[348011714,1736266783500,-4355.36,9.86e-05,2]
[348011715,1736266783523,-659.53,9.86e-05,2]
[348011716,1736266783545,-641.75,9.86e-05,2]
[348011717,1736266783567,-500.0,9.86e-05,2]
[348011718,1736266783589,-2133.87,9.86e-05,2]
[348011719,1736266783613,-2222.75,9.86e-05,2]
[348011720,1736266783636,-5240.22,9.86e-05,2]
[348011721,1736266783660,-575.29781593,9.86e-05,2]
[348011722,1736266783682,-500.0,9.86e-05,2]
[348011723,1736266783705,-1391.99,9.86e-05,2]
[348011724,1736266783727,-1192.62,9.86e-05,2]
[348011725,1736266783751,-3386.52,9.86e-05,2]
[348011726,1736266783774,-1986.31305506,9.86e-05,2]
[348011728,1736266803972,244.0,9.86e-05,30]
[348011729,1736266907015,-626.92,9.344e-05,2]
[348011730,1736266907040,-300.0,9.365e-05,2]
[348011731,1736266907064,-23900.0,9.366e-05,2]
[348011732,1736266907087,-150.0,9.859e-05,2]
[348011733,1736266907110,-52.79694494,9.86e-05,2]
[348011734,1736266907132,-3523.38,9.86e-05,2]
[348011735,1736266907154,-755.06,9.86e-05,2]
[348011736,1736266907176,-500.0,9.86e-05,2]
[348011737,1736266907197,-1094.74,9.86e-05,2]
[348011738,1736266907220,-500.0,9.86e-05,2]
[348011739,1736266907242,-787.98,9.86e-05,2]
[348011740,1736266907264,-1579.06,9.86e-05,2]
[348011741,1736266907288,-950.1,9.86e-05,2]
[348011742,1736266907310,-542.64,9.86e-05,2]
[348011743,1736266907331,-2404.94,9.86e-05,2]
[348011744,1736266907352,-1214.08,9.86e-05,2]
[348011745,1736266907374,-3330.66,9.86e-05,2]
[348011746,1736266907395,-755.96,9.86e-05,2]
[348011747,1736266907428,-500.0,9.86e-05,2]
[348011748,1736266907453,-500.0,9.86e-05,2]
[348011749,1736266907477,-1585.92,9.86e-05,2]
[348011750,1736266907499,-1240.58,9.86e-05,2]
[348011751,1736266907521,-902.2,9.86e-05,2]
[348011752,1736266907544,-1449.98305506,9.86e-05,2]
[348011753,1736266925672,-1319.9372,9.761e-05,2]
[348011754,1736266925700,-1208.37694494,9.86e-05,2]
[348011755,1736266925725,-500.0,9.86e-05,2]
[348011756,1736266925754,-1656.68,9.86e-05,2]
[348011757,1736266925779,-947.7,9.86e-05,2]
[348011758,1736266925803,-20.30585506,9.86e-05,2]
[348011766,1736267156254,2024.9631996,6.94e-05,2]
[348011767,1736267156281,10000.0,6.94e-05,2]
[348011768,1736267156305,3837.56423907,6.94e-05,2]
[348011800,1736267364877,166.35,7.026e-05,2]
[348011822,1736267436008,-300.0,8.498e-05,2]
[348011823,1736267436018,-150.0,8.498e-05,2]
[348011824,1736267436028,-506.7,8.499e-05,2]
[348011825,1736267436038,-956.66722042,8.499e-05,2]
[348011969,1736267437631,-1.80774607,8.499e-05,2]
[348011971,1736267437642,-1701.24503351,8.499e-05,2]
[348011973,1736267437651,-1026.11696259,8.499e-05,2]
[348011975,1736267437662,-3354.34303741,8.499e-05,2]
[348011977,1736267437671,-1532.45083515,8.499e-05,2]
[348011979,1736267437683,-512.50916485,8.499e-05,2]
[348011981,1736267437692,-500.0,8.499e-05,2]
[348011983,1736267437702,-1333.99,8.499e-05,2]
[348011985,1736267437711,-1264.52728663,8.499e-05,2]
[348011987,1736267437723,-396.49006648,8.499e-05,2]
[348011989,1736267437733,-1251.044929,8.499e-05,2]
[348011991,1736267437744,-333.34771789,8.499e-05,2]
[348011993,1736267437754,-520.03,8.499e-05,2]
[348011995,1736267437763,-539.65,8.499e-05,2]
[348011997,1736267437772,-500.0,8.499e-05,2]
[348011999,1736267437782,-500.0,8.499e-05,2]
[348012001,1736267437791,-500.0,8.499e-05,2]
[348012003,1736267437800,-500.0,8.499e-05,2]
[348012006,1736267437812,-154.27988211,8.499e-05,2]
[348012008,1736267437823,-345.72011789,8.499e-05,2]
[348012010,1736267437832,-500.0,8.499e-05,2]
[348012012,1736267437841,-500.0,8.499e-05,2]
[348012014,1736267437850,-418.70346569,8.499e-05,2]
[348012016,1736267437862,-81.29653431,8.499e-05,2]
[348012018,1736267437871,-500.0,8.499e-05,2]
[348012020,1736267437880,-500.0,8.499e-05,2]
[348012022,1736267437889,-56.75923037,8.499e-05,2]
[348012025,1736267437907,-443.24076963,8.499e-05,2]
[348012027,1736267437916,-500.0,8.499e-05,2]
[348012028,1736267437926,-31.75227241,8.499e-05,2]
[348012031,1736267437938,-1196.5,8.499e-05,2]
[348012033,1736267437949,-312.41772759,8.499e-05,2]
[348012035,1736267437958,-882.7247947,8.499e-05,2]
[348012037,1736267437968,-500.0,8.499e-05,2]
[348012039,1736267437979,-1316.45943004,8.5e-05,2]
[348012041,1736267437990,-3835.68,8.5e-05,2]
[348012043,1736267438002,-55939.09577618,8.5e-05,2]
[348012046,1736267438019,-13898.59,8.5e-05,2]
[348012048,1736267438030,-1230.44480407,8.5e-05,2]
[348012051,1736267438041,-1812.896085,8.5e-05,2]
[348012053,1736267438053,-579.1131891,8.5e-05,2]
[348012055,1736267438064,-487.25,8.5e-05,2]
[348012057,1736267438075,-4088.35702925,8.5e-05,2]
[348012064,1736267438118,-8669.55519593,8.5e-05,2]
[348012067,1736267438129,-278.08697012,8.5e-05,2]
[348012071,1736267438141,-5157.42275784,8.5e-05,2]
[348012073,1736267438154,-15278.35769434,8.5e-05,2]
[348012077,1736267438165,-10472.16983759,8.5e-05,2]
[348012137,1736267438736,-500.0,8.499e-05,2]
[348012140,1736267438745,-500.0,8.499e-05,2]
[348012143,1736267438754,-500.0,8.499e-05,2]
[348012145,1736267438763,-3826.1970244,8.5e-05,2]
[348012147,1736267438774,-739.73230278,8.5e-05,2]
[348012152,1736267438810,-1067.9999996,8.5e-05,2]
[348012154,1736267438825,-489.9768626,8.5e-05,2]
[348012165,1736267438914,-1227.21394694,8.5e-05,2]
[348012170,1736267438951,-2878.96060423,8.5e-05,2]
[348012171,1736267438962,-851110.44092333,8.5e-05,2]
[348012172,1736267438972,-506.7,8.773e-05,2]
[348012173,1736267438981,-2659.72,8.773e-05,2]
[348012174,1736267438991,-4380.46,8.773e-05,2]
[348012175,1736267439001,-2044.96,8.773e-05,2]
[348012176,1736267439010,-500.0,8.773e-05,2]
[348012177,1736267439019,-1333.99,8.773e-05,2]
[348012178,1736267439028,-3245.41,8.773e-05,2]
[348012179,1736267439038,-520.03,8.773e-05,2]
[348012180,1736267439047,-539.65,8.773e-05,2]
[348012181,1736267439056,-500.0,8.773e-05,2]
[348012182,1736267439065,-500.0,8.773e-05,2]
[348012183,1736267439074,-504.39461421,8.773e-05,2]
[348012184,1736267439083,-500.0,8.773e-05,2]
[348012185,1736267439092,-500.0,8.773e-05,2]
[348012186,1736267439102,-500.0,8.773e-05,2]
[348012187,1736267439114,-502.70990708,8.773e-05,2]
[348012188,1736267439123,-502.33613823,8.773e-05,2]
[348012190,1736267439133,-501.29210392,8.773e-05,2]
[348012192,1736267439142,-302.03,8.773e-05,2]
[348012194,1736267439151,-1540.67,8.773e-05,2]
[348012196,1736267439160,-500.0,8.773e-05,2]
[348012209,1736267439407,-500.0,8.773e-05,2]
[348012211,1736267439418,-500.0,8.773e-05,2]
[348012213,1736267439427,-648.81,8.979e-05,2]
[348012215,1736267439437,-506.7,9.047e-05,2]
[348012217,1736267439447,-2659.72,9.047e-05,2]
[348012219,1736267439456,-4380.46,9.047e-05,2]
[348012221,1736267439465,-2044.96,9.047e-05,2]
[348012223,1736267439477,-500.0,9.047e-05,2]
[348012225,1736267439486,-1333.99,9.047e-05,2]
[348012226,1736267439496,-3245.41,9.047e-05,2]
[348012227,1736267439506,-520.03,9.047e-05,2]
[348012229,1736267439515,-539.65,9.047e-05,2]
[348012231,1736267439524,-500.0,9.047e-05,2]
[348012233,1736267439534,-500.0,9.047e-05,2]
[348012235,1736267439543,-500.0,9.047e-05,2]
[348012237,1736267439553,-500.0,9.047e-05,2]
[348012239,1736267439562,-500.0,9.047e-05,2]
[348012241,1736267439571,-1540.67,9.047e-05,2]
[348012243,1736267439581,-500.0,9.047e-05,2]
[348012245,1736267439590,-362.71,9.137e-05,2]
[348012247,1736267439600,-1041.43,9.206e-05,2]
[348012249,1736267439610,-250.0,9.266e-05,2]
[348012252,1736267439620,-506.7,9.321e-05,2]
[348012254,1736267439629,-2659.72,9.321e-05,2]
[348012256,1736267439639,-4380.46,9.321e-05,2]
[348012258,1736267439649,-2044.96,9.321e-05,2]
[348012260,1736267439659,-500.0,9.321e-05,2]
[348012262,1736267439668,-1333.99,9.321e-05,2]
[348012264,1736267439677,-3245.41,9.321e-05,2]
[348012266,1736267439686,-520.03,9.321e-05,2]
[348012268,1736267439696,-539.65,9.321e-05,2]
[348012270,1736267439705,-500.0,9.321e-05,2]
[348012272,1736267439715,-500.0,9.321e-05,2]
[348012274,1736267439726,-500.0,9.321e-05,2]
[348012276,1736267439735,-500.0,9.321e-05,2]
[348012278,1736267439745,-500.0,9.321e-05,2]
[348012280,1736267439754,-1540.67,9.321e-05,2]
[348012281,1736267439763,-175.75,9.321e-05,2]
[348012283,1736267439772,-332.0,9.348e-05,2]
[348012285,1736267439782,-255.0,9.348e-05,2]
[348012288,1736267439791,-250.0,9.358e-05,2]
[348012290,1736267439801,-570.06,9.589e-05,2]
[348012292,1736267439811,-506.7,9.595e-05,2]
[348012293,1736267439821,-2659.72,9.595e-05,2]
[348012295,1736267439831,-4380.46,9.595e-05,2]
[348012298,1736267439840,-2044.96,9.595e-05,2]
[348012300,1736267439850,-500.0,9.595e-05,2]
[348012301,1736267439860,-1333.99,9.595e-05,2]
[348012303,1736267439869,-3245.41,9.595e-05,2]
[348012306,1736267439879,-520.03,9.595e-05,2]
[348012307,1736267439889,-539.65,9.595e-05,2]
[348012310,1736267439900,-500.0,9.595e-05,2]
[348012311,1736267439909,-500.0,9.595e-05,2]
[348012313,1736267439919,-500.0,9.595e-05,2]
[348012315,1736267439928,-500.0,9.595e-05,2]
[348012318,1736267439937,-500.0,9.595e-05,2]
[348012319,1736267439946,-1540.67,9.595e-05,2]
[348012322,1736267439956,-979.45,9.658e-05,2]
[348012324,1736267439965,-979.45,9.658e-05,2]
[348012326,1736267439977,-1729.8025,9.76e-05,2]
[348012328,1736267439986,-385.3619,9.76e-05,2]
[348012329,1736267439995,-711.68623832,9.76e-05,2]
[348012331,1736267440005,-2916.0,9.762e-05,2]
[348012333,1736267440014,-150.0,9.783e-05,2]
[348012335,1736267440023,-1700.0,9.8e-05,3]
[348012337,1736267440032,-205.0,9.8e-05,2]
[348012339,1736267440042,-6146.81,9.86e-05,2]
[348012341,1736267440051,-500.0,9.86e-05,2]
[348012343,1736267440060,-500.0,9.86e-05,2]
[348012345,1736267440071,-500.0,9.86e-05,2]
[348012348,1736267440080,-500.0,9.86e-05,2]
[348012350,1736267440090,-500.0,9.86e-05,2]
[348012351,1736267440100,-977.25,9.86e-05,2]
[348012353,1736267440112,-500.0,9.86e-05,2]
[348012355,1736267440121,-157.118634,9.86e-05,2]
[348012357,1736267440131,-500.0,9.86e-05,2]
[348012359,1736267440141,-500.0,9.86e-05,2]
[348012361,1736267440150,-800.04,9.86e-05,2]
[348012363,1736267440160,-500.0,9.86e-05,2]
[348012366,1736267440169,-823.04,9.86e-05,2]
[348012368,1736267440180,-500.0,9.86e-05,2]
[348012370,1736267440189,-606.41,9.86e-05,2]
[348012371,1736267440199,-1003.71,9.86e-05,2]
[348012374,1736267440209,-500.0,9.86e-05,2]
[348012377,1736267440219,-500.0,9.86e-05,2]
[348012380,1736267440230,-500.0,9.86e-05,2]
[348012382,1736267440239,-500.0,9.86e-05,2]
[348012385,1736267440249,-500.0,9.86e-05,2]
[348012387,1736267440258,-1094.17,9.86e-05,2]
[348012388,1736267440267,-500.0,9.86e-05,2]
[348012390,1736267440277,-500.0,9.86e-05,2]
[348012392,1736267440286,-401.37075738,9.86e-05,2]
[348012394,1736267440296,-500.0,9.86e-05,2]
[348012396,1736267440306,-1189.13,9.86e-05,2]
[348012399,1736267440316,-500.0,9.86e-05,2]
[348012401,1736267440326,-764.34,9.86e-05,2]
[348012403,1736267440336,-501.88690847,9.86e-05,2]
[348012405,1736267440345,-1130.65,9.86e-05,2]
[348012407,1736267440355,-500.0,9.86e-05,2]
[348012409,1736267440364,-500.0,9.86e-05,2]
[348012411,1736267440373,-1389.48,9.86e-05,2]
[348012413,1736267440382,-500.0,9.86e-05,2]
[348012414,1736267440391,-827.3,9.86e-05,2]
[348012416,1736267440400,-976.28,9.86e-05,2]
[348012418,1736267440410,-1057.82,9.86e-05,2]
[348012420,1736267440419,-827.52,9.86e-05,2]
[348012422,1736267440428,-736.09,9.86e-05,2]
[348012425,1736267440439,-500.0,9.86e-05,2]
[348012427,1736267440448,-972.73,9.86e-05,2]
[348012429,1736267440458,-501.32225581,9.86e-05,2]
[348012430,1736267440467,-500.0,9.86e-05,2]
[348012432,1736267440478,-508.87,9.86e-05,2]
[348012434,1736267440487,-500.0,9.86e-05,2]
[348012436,1736267440496,-1238.35,9.86e-05,2]
[348012438,1736267440506,-500.0,9.86e-05,2]
[348012440,1736267440516,-1517.5,9.86e-05,2]
[348012442,1736267440526,-500.0,9.86e-05,2]
[348012444,1736267440535,-500.0,9.86e-05,2]
[348012446,1736267440544,-697.07,9.86e-05,2]
[348012448,1736267440554,-500.0,9.86e-05,2]
[348012450,1736267440564,-500.0,9.86e-05,2]
[348012453,1736267440574,-500.0,9.86e-05,2]
[348012455,1736267440584,-650.94,9.86e-05,2]
[348012457,1736267440593,-500.0,9.86e-05,2]
[348012458,1736267440603,-500.98064584,9.86e-05,2]
[348012460,1736267440612,-500.0,9.86e-05,2]
[348012462,1736267440621,-500.0,9.86e-05,2]
[348012464,1736267440631,-592.92,9.86e-05,2]
[348012466,1736267440640,-500.0,9.86e-05,2]
[348012468,1736267440649,-502.59534447,9.86e-05,2]
[348012470,1736267440658,-500.64057856,9.86e-05,2]
[348012472,1736267440667,-637.86,9.86e-05,2]
[348012474,1736267440676,-500.0,9.86e-05,2]
[348012476,1736267440685,-500.0,9.86e-05,2]
[348012478,1736267440694,-500.0,9.86e-05,2]
[348012480,1736267440703,-278.4712197,9.86e-05,2]
[348012482,1736267440713,-500.0,9.86e-05,2]
[348012484,1736267440722,-500.60756101,9.86e-05,2]
[348012486,1736267440732,-500.0,9.86e-05,2]
[348012488,1736267440741,-500.0,9.86e-05,2]
[348012490,1736267440751,-862.91,9.86e-05,2]
[348012492,1736267440760,-501.44011796,9.86e-05,2]
[348012494,1736267440770,-352.34791048,9.86e-05,2]
[348012496,1736267440779,-4562.17,9.86e-05,2]